fUST/lending_fUST_20260411
["ID","MTS","AMOUNT","RATE_DAILY","PERIOD"]
[420259272,1775862640440,-207.64602648,0.00012362,2]
[420259274,1775862640458,-3086.79005664,0.00012362,2]
[420259275,1775862640472,-5850.91848363,0.00012362,2]
[420259276,1775862640482,-190.848,0.0001264,2]
[420259277,1775862640497,-455.4746423,0.00012653,2]
[420259278,1775862640506,-177.0,0.00012768,2]
[420259279,1775862640521,-151.0,0.000129,2]
[420259280,1775862640536,-151.0,0.000129,2]
[420259281,1775862640549,-151.0,0.000129,2]
[420259282,1775862640558,-151.0,0.000129,2]
[420259283,1775862640577,-151.0,0.000129,2]
[420259284,1775862640591,-151.0,0.000129,2]
[420259285,1775862640600,-151.0,0.000129,2]
[420259286,1775862640619,-151.0,0.000129,2]
[420259287,1775862640633,-151.0,0.000129,2]
[420259288,1775862640663,-298.23012186,0.00012929,2]
[420259289,1775862640673,-500.0,0.00012929,2]
[420259290,1775862640683,-500.0,0.00012929,2]
[420259291,1775862640716,-500.0,0.00012929,2]
[420259292,1775862640726,-500.0,0.00012929,2]
[420259293,1775862640739,-620.80937625,0.00012929,2]
[420259294,1775862640751,-33153.25498534,0.0001293,2]
[420259295,1775862640776,-1533.0,0.0001293,2]
[420259307,1775862643136,-587.80325138,0.0001293,2]
[420259308,1775862643147,-3073.31367078,0.0001293,2]
[420259309,1775862643163,-642.99355765,0.0001293,2]
[420259310,1775862643202,-124083.77758493,0.0001293,2]
[420259311,1775862643213,-43966.37526459,0.0001293,2]
[420259312,1775862643232,-585.97660249,0.0001293,2]
[420259313,1775862643247,-7374.82932665,0.0001293,2]
[420259315,1775862646077,-8956.29472078,0.0001293,2]
[420259316,1775862646090,-610.99505787,0.0001293,2]
[420259317,1775862646120,-46559.09479274,0.0001293,2]
[420259318,1775862646202,-637.00774766,0.0001293,2]
[420259320,1775862646445,-6168.22493245,0.0001293,2]
[420259325,1775863824243,-1585.60621637,9.825e-05,2]
[420259350,1775863833319,-590.89704867,9.825e-05,2]
[420259352,1775863833339,-86.36562741,9.924e-05,2]
[420259355,1775863833366,-305.668248,9.924e-05,2]
[420259357,1775863833378,-573.72034567,9.924e-05,2]
[420259359,1775863833391,-4034.24577892,9.924e-05,2]
[420259361,1775863833413,-151.0,0.00010024,2]
[420259363,1775863833426,-560.0,0.00010024,2]
[420259365,1775863833436,-151.0,0.00010543,2]
[420259367,1775863833452,-103.75422108,0.00010599,2]
[420259369,1775863833464,-665.05160848,0.00010599,2]
[420259372,1775863833477,-62.82931661,0.00010599,2]
[420259374,1775863833487,-335.0858591,0.00010599,2]
[420259376,1775863833501,-2988.12818498,0.00010599,2]
[420259378,1775863833520,-250.0,0.00011661,2]
[420259380,1775863833530,-455.5452178,0.00011832,2]
[420259383,1775863833546,-177.0,0.0001249,2]
[420259385,1775863833563,-4748.92399528,0.00012653,2]
[420259387,1775863833588,-3071.05023197,0.00012653,2]
[420259389,1775863833602,-151.5,0.00012656,2]
[420259391,1775863833637,-302.55111273,0.00012656,2]
[420259393,1775863833701,-16.18507053,0.00012729,2]
[420259445,1775863838424,-483.81492947,0.00012729,2]
[420259446,1775863838442,-278.44033355,0.00012729,2]
[420259447,1775863838457,-500.0,0.00012729,2]
[420259448,1775863838478,-500.0,0.00012729,2]
[420259449,1775863838503,-500.0,0.00012729,2]
[420259450,1775863838530,-524.52214481,0.00012729,2]
[420259451,1775863838559,-500.0,0.00012729,2]
[420259452,1775863838568,-500.0,0.00012729,2]
[420259453,1775863838600,-450.0,0.00012729,2]
[420259454,1775863838832,-500.0,0.00012729,2]
[420259455,1775863838852,-500.0,0.00012729,2]
[420259456,1775863838865,-500.0,0.00012729,2]
[420259457,1775863838876,-500.0,0.00012729,2]
[420259458,1775863838885,-500.0,0.00012729,2]
[420259459,1775863838897,-500.0,0.00012729,2]
[420259460,1775863838913,-500.0,0.00012729,2]
[420259461,1775863838931,-500.0,0.00012729,2]
[420259462,1775863838945,-500.0,0.00012729,2]
[420259463,1775863838954,-500.0,0.00012729,2]
[420259464,1775863838973,-500.0,0.00012729,2]
[420259465,1775863838996,-500.0,0.00012729,2]
[420259466,1775863839006,-500.0,0.00012729,2]
[420259467,1775863839028,-500.0,0.00012729,2]
[420259468,1775863839039,-500.0,0.00012729,2]
[420259469,1775863839049,-500.0,0.00012729,2]
[420259470,1775863839068,-500.0,0.00012729,2]
[420259471,1775863839078,-500.0,0.00012729,2]
[420259472,1775863839089,-532.4927287,0.00012729,2]
[420259473,1775863839109,-500.0,0.00012729,2]
[420259474,1775863839120,-250.0,0.00012729,2]
[420259475,1775863839131,-367070.91905909,0.0001273,2]
[420259476,1775863839149,-984292.97047373,0.0001273,2]
[420259477,1775863839163,-4297.45023532,0.0001273,2]
[420259478,1775863839174,-324.0,0.0001273,2]
[420259479,1775863839214,-28999.94273968,0.0001273,2]
[420259480,1775863839231,-3191.72976468,0.0001273,2]
[420259487,1775863841195,-689.93964682,0.0001273,2]
[420259582,1775865038732,-300.0,0.0001009,8]
[420259584,1775865038782,-575.9666368,0.00010644,2]
[420259586,1775865038818,-453.0,0.00010644,2]
[420259589,1775865038835,-2000.0,0.00010644,2]
[420259593,1775865038933,-1745.76882788,0.00010644,2]
[420259595,1775865038951,-225.26453532,0.00010644,2]
[420259597,1775865038971,-571.0,0.00010752,2]
[420259600,1775865038981,-1541.9044297,0.00011561,2]
[420259602,1775865038993,-330.74300098,0.00011669,2]
[420259604,1775865039017,-1321.64903192,0.00011669,2]
[420259606,1775865039027,-152.397613,0.00011689,2]
[420259607,1775865039043,-7788.4714219,0.00012199,2]
[420259610,1775865039064,-5000.0,0.00012199,2]
[420259611,1775865039081,-209.784,0.00012278,2]
[420259614,1775865039095,-185.844,0.00012278,2]
[420259615,1775865039111,-475.04258007,0.00012283,2]
[420259617,1775865039127,-9942.98162234,0.00012284,2]
[420259633,1775865039364,-40057.01837766,0.00012284,2]
[420259635,1775865039390,-177.0,0.00012421,2]
[420259637,1775865039417,-500.0,0.00012428,2]
[420259639,1775865039433,-600.0,0.00012428,2]
[420259640,1775865039452,-500.0,0.00012428,2]
[420259643,1775865039472,-194.90823348,0.00012428,2]
[420259645,1775865039489,-500.0,0.00012428,2]
[420259647,1775865039503,-500.0,0.00012428,2]
[420259649,1775865039517,-500.0,0.00012428,2]
[420259651,1775865039536,-500.0,0.00012428,2]
[420259653,1775865039553,-500.0,0.00012428,2]
[420259655,1775865039563,-500.0,0.00012428,2]
[420259657,1775865039577,-267.16550137,0.00012428,2]
[420259659,1775865039597,-500.0,0.00012428,2]
[420259661,1775865039608,-500.0,0.00012428,2]
[420259663,1775865039617,-500.0,0.00012428,2]
[420259665,1775865039641,-500.0,0.00012428,2]
[420259667,1775865039653,-500.0,0.00012428,2]
[420259669,1775865039663,-500.0,0.00012428,2]
[420259671,1775865039674,-500.0,0.00012428,2]
[420259673,1775865039694,-500.0,0.00012428,2]
[420259674,1775865039704,-500.0,0.00012428,2]
[420259675,1775865039714,-500.0,0.00012428,2]
[420259677,1775865039739,-427.06838312,0.00012428,2]
[420259679,1775865039755,-500.0,0.00012428,2]
[420259680,1775865039766,-500.0,0.00012428,2]
[420259681,1775865039775,-1700000.0,0.00012429,2]
[420259682,1775865039786,-278884.03764378,0.00012429,2]
[420259700,1775865041613,-898.54450489,0.00012429,2]
[420259715,1775865046532,-1471.18533256,0.00012304,2]
[420259716,1775865046555,-3528.81466744,0.00012304,2]
[420259717,1775865046564,-208.21655739,0.00012321,2]
[420259718,1775865046582,-94.57921768,0.00012429,2]
[420259719,1775865046713,-4439.59166744,0.00012429,2]
[420259812,1775866238787,-5000.0,9.703e-05,2]
[420259813,1775866238806,-557.0,9.801e-05,2]
[420259814,1775866238816,-419.91550361,0.0001,2]
[420259815,1775866238841,-1798.64769925,0.0001,2]
[420259816,1775866238850,-300.0,0.00010199,2]
[420259817,1775866239069,-300.0,0.00010199,2]
[420259818,1775866239098,-300.0,0.00010199,2]
[420259819,1775866239109,-300.0,0.00010199,2]
[420259820,1775866239135,-300.0,0.00010199,2]
[420259822,1775866239145,-300.0,0.00010199,2]
[420259823,1775866239179,-300.0,0.00010199,2]
[420259826,1775866239196,-300.0,0.00010199,2]
[420259827,1775866239239,-300.0,0.00010199,2]
[420259828,1775866239262,-300.0,0.00010199,2]
[420259829,1775866239293,-300.0,0.00010199,2]
[420259830,1775866239303,-300.0,0.00010199,2]
[420259831,1775866239350,-300.0,0.00010199,2]
[420259832,1775866239360,-300.0,0.00010199,2]
[420259833,1775866239369,-300.0,0.00010199,2]
[420259834,1775866239381,-600.0,0.00010402,2]
[420259835,1775866239393,-325.1311657,0.00011032,2]
[420259836,1775866239403,-720.0,0.00011442,2]
[420259837,1775866239413,-165.129295,0.00011492,2]
[420259838,1775866239422,-196.3960556,0.00011686,2]
[420259839,1775866239432,-324.7786556,0.00011689,2]
[420259840,1775866239444,-7219.52275039,0.00011735,2]
[420259841,1775866239454,-177.0,0.00011901,2]
[420259842,1775866239464,-181.47887485,0.00012129,2]
[420259843,1775866239481,-127299.83966075,0.00012129,2]
[420259844,1775866239497,-2109.75565124,0.00012129,2]
[420259845,1775866239510,-1666.4134488,0.00012129,2]
[420259854,1775866241512,-478.73865039,0.00012129,2]
[420259858,1775866250295,-14918.09712321,0.00012129,2]
[420259859,1775866250356,-4215.9999828,0.00012129,2]
[420259861,1775866250557,-9523.08965803,0.00012129,2]
[420259862,1775866250690,-51240.71965244,0.00012129,2]
[420259863,1775866250721,-300.0,0.00012129,2]
[420259864,1775866250739,-3691.27069464,0.00012129,2]
[420259865,1775866250762,-2265.967128,0.00012129,2]
[420259866,1775866250787,-1891.0220345,0.00012129,2]
[420259867,1775866250866,-798.23978973,0.00012129,2]
[420260501,1775867441289,-389.9284953,0.00011304,2]
[420260587,1775867443480,-1073.93040437,0.00011304,2]
[420260699,1775867446153,-3536.14110033,0.00011304,2]
[420260700,1775867446334,-579.0,0.00011304,2]
[420260701,1775867446358,-377.47059645,0.00011488,2]
[420260702,1775867446425,-1508.37250341,0.00011488,2]
[420260703,1775867446509,-724.96937244,0.00011488,2]
[420260704,1775867446699,-2896.97761229,0.00011488,2]
[420260705,1775867446917,-202.251,0.00011689,2]
[420260706,1775867447082,-196.3909716,0.00011758,2]
[420260707,1775867447123,-20000.0,0.000118,2]
[420260708,1775867447150,-208.21655738,0.00011825,2]
[420260709,1775867447165,-500.0,0.00011826,2]
[420260710,1775867447182,-500.0,0.00011826,2]
[420260711,1775867447222,-323.54526287,0.00011826,2]
[420260712,1775867447242,-500.0,0.00011826,2]
[420260713,1775867447261,-500.0,0.00011826,2]
[420260714,1775867447277,-500.0,0.00011826,2]
[420260715,1775867447289,-261.74002793,0.00011826,2]
[420260716,1775867447325,-500.0,0.00011826,2]
[420260717,1775867447335,-500.0,0.00011826,2]
[420260718,1775867447347,-500.0,0.00011826,2]
[420260719,1775867447365,-500.0,0.00011826,2]
[420260720,1775867447374,-500.0,0.00011826,2]
[420260721,1775867447383,-500.0,0.00011826,2]
[420260722,1775867447399,-575.68484015,0.00011826,2]
[420260723,1775867447412,-500.0,0.00011826,2]
[420260724,1775867447421,-500.0,0.00011826,2]
[420260725,1775867447445,-500.0,0.00011826,2]
[420260726,1775867447455,-500.0,0.00011826,2]
[420260727,1775867447467,-500.0,0.00011826,2]
[420260728,1775867447482,-500.0,0.00011826,2]
[420260729,1775867447513,-348.54031182,0.00011826,2]
[420260730,1775867447531,-500.0,0.00011826,2]
[420260731,1775867447561,-500.0,0.00011826,2]
[420260732,1775867447588,-500.0,0.00011826,2]
[420260733,1775867447602,-500.0,0.00011826,2]
[420260734,1775867447617,-500.0,0.00011826,2]
[420260735,1775867447643,-500.0,0.00011826,2]
[420260736,1775867447654,-500.0,0.00011826,2]
[420260737,1775867447673,-500.0,0.00011826,2]
[420260738,1775867447687,-250.0,0.00011826,2]
[420260739,1775867447696,-500.0,0.00011826,2]
[420260740,1775867447711,-500.0,0.00011826,2]
[420260741,1775867447739,-500.0,0.00011826,2]
[420260742,1775867447749,-624.87900606,0.00011826,2]
[420260743,1775867447771,-27098.55048424,0.00011827,2]
[420260744,1775867449301,-5000.0,0.00011191,2]
[420260745,1775867449314,-16490.00510477,0.00011827,2]
[420260746,1775867449335,-927.1608562,0.00011827,2]
[420260849,1775868176664,889.37,9.001e-05,2]
[420260857,1775868631901,-184.39798075,0.00010183,30]
[420260858,1775868631911,-2662.67699456,0.00010194,2]
[420260859,1775868631948,-1259.76777739,0.00010194,2]
[420261041,1775868638478,-1077.55522805,0.00010194,2]
[420261042,1775868638489,-330.0,0.00010297,2]
[420261043,1775868638501,-0.62436424,0.00010822,2]
[420261044,1775868638519,-249.37563576,0.00010822,2]
[420261045,1775868638530,-458.31988956,0.00010822,2]
[420261046,1775868638542,-300.0,0.00010823,2]
[420261048,1775868638553,-300.0,0.00010823,2]
[420261049,1775868638570,-300.0,0.00010823,2]
[420261050,1775868638586,-300.0,0.00010823,2]
[420261051,1775868638597,-300.0,0.00010823,2]
[420261052,1775868638620,-300.0,0.00010823,2]
[420261053,1775868638629,-300.0,0.00010823,2]
[420261054,1775868638641,-300.0,0.00010823,2]
[420261055,1775868638665,-300.0,0.00010823,2]
[420261056,1775868638675,-300.0,0.00010823,2]
[420261057,1775868638690,-300.0,0.00010823,2]
[420261058,1775868638709,-300.0,0.00010823,2]
[420261059,1775868638719,-300.0,0.00010823,2]
[420261060,1775868638730,-300.0,0.00010823,2]
[420261061,1775868638752,-300.0,0.00010823,2]
[420261062,1775868638763,-50000.0,0.00010823,2]
[420261063,1775868638785,-23265.20210892,0.000116,2]
[420261064,1775868638807,-3055.3471497,0.00011625,2]
[420261065,1775868638822,-151.0,0.00011663,2]
[420261066,1775868638843,-195.9726555,0.00011663,2]
[420261067,1775868638858,-151.0,0.000117,2]
[420261068,1775868638874,-151.0,0.000117,2]
[420261069,1775868638886,-151.0,0.000117,2]
[420261070,1775868638900,-151.0,0.000117,2]
[420261071,1775868638912,-151.0,0.000117,2]
[420261072,1775868638922,-151.0,0.000117,2]
[420261073,1775868638938,-151.0,0.000117,2]
[420261074,1775868638948,-151.0,0.000117,2]
[420261075,1775868638962,-151.0,0.000117,2]
[420261076,1775868638974,-151.0,0.000117,2]
[420261077,1775868638987,-151.0,0.000117,2]
[420261078,1775868639000,-500.0,0.00011719,2]
[420261079,1775868639010,-500.0,0.00011719,2]
[420261080,1775868639032,-500.0,0.00011719,2]
[420261081,1775868639042,-500.0,0.00011719,2]
[420261082,1775868639053,-500.0,0.00011719,2]
[420261083,1775868639076,-500.0,0.00011719,2]
[420261084,1775868639088,-500.0,0.00011719,2]
[420261085,1775868639105,-296.39421701,0.00011719,2]
[420261086,1775868639120,-500.0,0.00011719,2]
[420261087,1775868639133,-500.0,0.00011719,2]
[420261088,1775868639153,-500.0,0.00011719,2]
[420261089,1775868639165,-500.0,0.00011719,2]
[420261090,1775868639184,-500.0,0.00011719,2]
[420261091,1775868639195,-500.0,0.00011719,2]
[420261092,1775868639207,-500.0,0.00011719,2]
[420261093,1775868639218,-500.0,0.00011719,2]
[420261094,1775868639234,-500.0,0.00011719,2]
[420261095,1775868639244,-500.0,0.00011719,2]
[420261096,1775868639259,-283.21801955,0.00011719,2]
[420261097,1775868639269,-500.0,0.00011719,2]
[420261098,1775868639280,-500.0,0.00011719,2]
[420261099,1775868639290,-500.0,0.00011719,2]
[420261100,1775868639310,-500.0,0.00011719,2]
[420261101,1775868639319,-500.0,0.00011719,2]
[420261102,1775868639333,-486.38116883,0.00011719,2]
[420261103,1775868639348,-500.0,0.00011719,2]
[420261104,1775868639358,-500.0,0.00011719,2]
[420261105,1775868639367,-500.0,0.00011719,2]
[420261106,1775868639380,-500.0,0.00011719,2]
[420261107,1775868639396,-500.0,0.00011719,2]
[420261108,1775868639409,-250.0,0.00011719,2]
[420261109,1775868639423,-140000.00000064,0.0001172,2]
[420261110,1775868639433,-4842.1709515,0.00011739,2]
[420261111,1775868639446,-151.0,0.00011758,2]
[420261112,1775868639458,-455.5488178,0.00011758,2]
[420261113,1775868639470,-325.1916262,0.00011758,2]
[420261114,1775868639481,-151.0,0.000118,2]
[420261115,1775868639507,-550.0,0.000118,2]
[420261116,1775868639517,-600.0,0.0001206,2]
[420261117,1775868639526,-162.380719,0.00012115,2]
[420261118,1775868639553,-151.0,0.00012115,2]
[420261119,1775868639565,-500.0,0.00012115,2]
[420261120,1775868639574,-445.202766,0.00012115,2]
[420261121,1775868639613,-500.0,0.00012115,2]
[420261122,1775868639648,-500.0,0.00012115,2]
[420261123,1775868639659,-500.0,0.00012115,2]
[420261124,1775868639685,-500.0,0.00012115,2]
[420261125,1775868639695,-500.0,0.00012115,2]
[420261126,1775868639709,-500.0,0.00012115,2]
[420261127,1775868639718,-500.0,0.00012115,2]
[420261128,1775868639740,-500.0,0.00012115,2]
[420261129,1775868639750,-500.0,0.00012115,2]
[420261130,1775868639760,-500.0,0.00012115,2]
[420261131,1775868639778,-500.0,0.00012115,2]
[420261132,1775868639787,-500.0,0.00012115,2]
[420261133,1775868639798,-500.0,0.00012115,2]
[420261134,1775868639811,-500.0,0.00012115,2]
[420261135,1775868639820,-500.0,0.00012115,2]
[420261136,1775868639829,-500.0,0.00012115,2]
[420261137,1775868639846,-2150.738,0.00012115,2]
[420261138,1775868639855,-500.0,0.00012115,2]
[420261139,1775868639868,-500.0,0.00012115,2]
[420261140,1775868639879,-537.6845,0.00012115,2]
[420261141,1775868639888,-156.587,0.00012115,2]
[420261142,1775868639910,-537.6845,0.00012115,2]
[420261143,1775868639919,-557.5788265,0.0001217,2]
[420261144,1775868639933,-578.20924308,0.00012225,2]
[420261145,1775868639946,-376.580582,0.00012228,2]
[420261146,1775868639968,-209.3,0.00012264,7]
[420261147,1775868639978,-318.67,0.00012275,7]
[420261148,1775868639999,-599.60298507,0.0001228,2]
[420261149,1775868640010,-177.0,0.00012292,2]
[420261150,1775868640021,-500.0,0.00012317,2]
[420261151,1775868640041,-621.78829552,0.00012335,2]
[420261152,1775868640053,-1153.6930927,0.00012382,2]
[420261153,1775868640069,-280.35098394,0.0001239,2]
[420261154,1775868640101,-386.6974743,0.00012428,2]
[420261155,1775868640111,-325.1876519,0.00012474,2]
[420261156,1775868640124,-196.3945489,0.00012479,2]
[420261157,1775868640137,-196.0785327,0.00012485,2]
[420261160,1775868640148,-455.5567169,0.00012485,2]
[420261162,1775868640157,-151.0,0.0001252,2]
[420261163,1775868640167,-150000.0,0.0001252,2]
[420261164,1775868640178,-17515.39360872,0.0001252,2]
[420261165,1775868640189,-500.0,0.00012548,2]
[420261166,1775868640199,-151.0,0.00012576,2]
[420261167,1775868640216,-151.0,0.00012576,2]
[420261168,1775868640229,-500.0,0.0001259,2]
[420261169,1775868640240,-471.0,0.00012605,2]
[420261170,1775868640417,-410.20379303,0.00012609,2]
[420261171,1775868640466,-520.51524112,0.00012609,2]
[420261172,1775868640499,-496.31431593,0.00012609,2]
[420261173,1775868640515,-500.0,0.00012609,2]
[420261174,1775868640541,-220.21412955,0.00012609,2]
[420261175,1775868640558,-500.0,0.00012609,2]
[420261176,1775868640595,-309.67444645,0.00012609,2]
[420261178,1775868640608,-162.13075341,0.00012612,2]
[420261180,1775868640622,-500.0,0.00012612,2]
[420261181,1775868640645,-500.0,0.00012642,2]
[420261182,1775868640663,-510.50954058,0.00012663,2]
[420261183,1775868640692,-500.0,0.00012663,2]
[420261184,1775868640706,-2230.315306,0.00012663,2]
[420261185,1775868640716,-557.5788265,0.00012663,2]
[420261186,1775868640734,-376.580582,0.00012742,2]
[420261187,1775868640754,-503.18719472,0.00012944,2]
[420261188,1775868640766,-159.86580496,0.00012964,2]
[420261189,1775868640797,-166.0,0.00012964,2]
[420261190,1775868640807,-948.0,0.00012964,2]
[420261191,1775868640841,-166.0,0.00012964,2]
[420261192,1775868640852,-948.0,0.00012964,2]
[420261193,1775868640861,-648.0,0.00012964,2]
[420261194,1775868640886,-166.0,0.00012964,2]
[420261195,1775868640896,-948.0,0.00012964,2]
[420261196,1775868640912,-648.0,0.00012964,2]
[420261197,1775868640921,-166.0,0.00012964,2]
[420261198,1775868640937,-340.0,0.00012964,2]
[420261199,1775868640949,-948.0,0.00012964,2]
[420261200,1775868640961,-172.0,0.00012964,2]
[420261201,1775868640977,-166.0,0.00012964,2]
[420261202,1775868640987,-648.0,0.00012964,2]
[420261203,1775868641002,-340.0,0.00012964,2]
[420261204,1775868641019,-948.0,0.00012964,2]
[420261205,1775868641029,-166.0,0.00012964,2]
[420261206,1775868641052,-648.0,0.00012964,2]
[420261207,1775868641076,-340.0,0.00012964,2]
[420261208,1775868641093,-240.2680504,0.00012964,2]
[420261209,1775868641103,-648.0,0.00012964,2]
[420261210,1775868641112,-948.0,0.00012964,2]
[420261211,1775868641135,-178.96845099,0.00012964,2]
[420261212,1775868641146,-648.0,0.00012964,2]
[420261213,1775868641156,-948.0,0.00012964,2]
[420261214,1775868641167,-648.0,0.00012964,2]
[420261215,1775868641187,-948.0,0.00012964,2]
[420261216,1775868641207,-648.0,0.00012964,2]
[420261217,1775868641219,-948.0,0.00012964,2]
[420261218,1775868641240,-648.0,0.00012964,2]
[420261219,1775868641252,-948.0,0.00012964,2]
[420261220,1775868641261,-648.0,0.00012964,2]
[420261221,1775868641278,-948.0,0.00012964,2]
[420261222,1775868641300,-648.0,0.00012964,2]
[420261223,1775868641313,-948.0,0.00012964,2]
[420261224,1775868641328,-648.0,0.00012964,2]
[420261225,1775868641349,-948.0,0.00012964,2]
[420261226,1775868641374,-648.0,0.00012964,2]
[420261227,1775868641394,-948.0,0.00012964,2]
[420261228,1775868641403,-648.0,0.00012964,2]
[420261229,1775868641421,-948.0,0.00012964,2]
[420261230,1775868641436,-648.0,0.00012964,2]
[420261231,1775868641445,-948.0,0.00012964,2]
[420261232,1775868641454,-648.0,0.00012964,2]
[420261233,1775868641468,-948.0,0.00012964,2]
[420261234,1775868641478,-648.0,0.00012964,2]
[420261235,1775868641487,-948.0,0.00012964,2]
[420261236,1775868641496,-648.0,0.00012964,2]
[420261237,1775868641509,-776.02178376,0.00012964,2]
[420261238,1775868641522,-648.0,0.00012964,2]
[420261239,1775868641531,-648.0,0.00012964,2]
[420261240,1775868641540,-648.0,0.00012964,2]
[420261241,1775868641552,-656.95357848,0.00012964,2]
[420261242,1775868641562,-500.0,0.00012988,2]
[420261243,1775868641575,-506.54615064,0.00012988,2]
[420261244,1775868641585,-27324.8566483,0.00012996,2]
[420261245,1775868641604,-256.0,0.00013,2]
[420261246,1775868641615,-1545.24310731,0.00013014,2]
[420261247,1775868641625,-1006.63725927,0.00013096,2]
[420261248,1775868641642,-250.0,0.00013151,2]
[420261249,1775868641669,-1000.0,0.00013157,2]
[420261250,1775868641680,-1000.0,0.0001316,2]
[420261251,1775868641700,-1009.35722246,0.0001319,2]
[420261252,1775868641709,-2312.83697232,0.00013211,2]
[420261253,1775868641725,-578.20924308,0.00013211,2]
[420261254,1775868641739,-1080.4343798,0.00013231,2]
[420261255,1775868641755,-376.580582,0.00013257,2]
[420261256,1775868641769,-720.0,0.00013266,2]
[420261257,1775868641783,-462.208299,0.00013302,2]
[420261258,1775868641796,-193.78815186,0.00013484,2]
[420261259,1775868641805,-205.11100685,0.00013484,2]
[420261260,1775868641816,-3055.34714965,0.00013533,2]
[420261261,1775868641839,-241.0774962,0.00013563,2]
[420261262,1775868641848,-471.0,0.00013605,2]
[420261263,1775868641857,-2206.0,0.00013647,2]
[420261264,1775868641867,-1472.953,0.00013647,2]
[420261265,1775868641887,-644.0,0.00013647,2]
[420261266,1775868641897,-753.628,0.00013647,2]
[420261267,1775868641907,-441.0,0.00013647,2]
[420261268,1775868641938,-184.0,0.00013647,2]
[420261269,1775868641953,-1498.3121,0.00013698,2]
[420261270,1775868641962,-502.7394879,0.00013698,2]
[420261271,1775868641982,-177.178397,0.00013698,2]
[420261272,1775868642003,-500.0,0.00013698,2]
[420261273,1775868642014,-151.37,0.00013698,2]
[420261274,1775868642023,-500.34295496,0.00013698,2]
[420261275,1775868642038,-500.78908136,0.00013698,2]
[420261276,1775868642053,-500.0,0.00013698,2]
[420261277,1775868642062,-500.0,0.00013698,2]
[420261278,1775868642077,-380.11,0.00013698,2]
[420261279,1775868642109,-500.34148474,0.00013698,2]
[420261280,1775868642121,-500.0,0.00013698,2]
[420261281,1775868642135,-502.41022157,0.00013698,2]
[420261282,1775868642146,-500.64130068,0.00013698,2]
[420261283,1775868642166,-501.56153947,0.00013698,2]
[420261284,1775868642177,-151.0,0.00013698,2]
[420261285,1775868642204,-501.49158477,0.00013698,2]
[420261286,1775868642216,-172.06,0.00013698,2]
[420261287,1775868642241,-352.85184385,0.00013698,2]
[420261288,1775868642251,-500.62435785,0.00013698,2]
[420261289,1775868642260,-500.0,0.00013698,2]
[420261290,1775868642294,-1502.561881,0.00013698,2]
[420261291,1775868642303,-500.0,0.00013698,2]
[420261292,1775868642323,-501.48607481,0.00013698,2]
[420261293,1775868642337,-500.81288564,0.00013698,2]
[420261294,1775868642346,-501.6680932,0.00013698,2]
[420261295,1775868642365,-500.0,0.00013698,2]
[420261296,1775868642401,-3026.411067,0.00013698,2]
[420261297,1775868642411,-216.56,0.00013698,2]
[420261298,1775868642436,-491.26156221,0.00013698,2]
[420261299,1775868642463,-500.0,0.00013698,2]
[420261301,1775868642472,-500.50061758,0.00013698,2]
[420261303,1775868642486,-500.0,0.00013698,2]
[420261305,1775868642505,-206.83,0.00013698,2]
[420261307,1775868642514,-608.56,0.00013698,2]
[420261309,1775868642523,-500.0,0.00013698,2]
[420261312,1775868642546,-500.0,0.00013698,2]
[420261315,1775868642556,-592.83137805,0.00013698,2]